fUSD/lending_fUSD_20260610
["ID","MTS","AMOUNT","RATE_DAILY","PERIOD"]
[424729494,1781094111000,-228.0,0.0001264,2]
[424729497,1781094148000,-229.0,0.0001264,2]
[424729498,1781094148000,-228.0,0.0001264,2]
[424729499,1781094148000,-223.0,0.0001264,2]
[424729496,1781094148000,-20.01,0.0001264,2]
[424729501,1781094148000,-224.0,0.0001264,2]
[424729503,1781094148000,-225.0,0.0001264,2]
[424729500,1781094148000,-228.0,0.0001264,2]
[424729502,1781094148000,-227.0,0.0001264,2]
[424729506,1781094148000,-224.0,0.0001264,2]
[424729507,1781094148000,-223.0,0.0001264,2]
[424729504,1781094148000,-223.0,0.0001264,2]
[424729509,1781094148000,-225.0,0.0001264,2]
[424729508,1781094148000,-228.0,0.0001264,2]
[424729510,1781094148000,-229.0,0.0001264,2]
[424729511,1781094148000,-227.0,0.0001264,2]
[424729512,1781094148000,-222.0,0.0001264,2]
[424729505,1781094148000,-223.0,0.0001264,2]
[424729528,1781094149000,-222.0,0.0001264,2]
[424729529,1781094149000,-222.0,0.0001264,2]
[424729527,1781094149000,-228.0,0.0001264,2]
[424729526,1781094149000,-229.0,0.0001264,2]
[424729524,1781094149000,-224.0,0.0001264,2]
[424729523,1781094149000,-228.0,0.0001264,2]
[424729521,1781094149000,-228.0,0.0001264,2]
[424729522,1781094149000,-221.0,0.0001264,2]
[424729519,1781094149000,-226.0,0.0001264,2]
[424729518,1781094149000,-221.0,0.0001264,2]
[424729517,1781094149000,-225.0,0.0001264,2]
[424729530,1781094149000,-228.0,0.0001264,2]
[424729516,1781094149000,-226.0,0.0001264,2]
[424729514,1781094149000,-221.0,0.0001264,2]
[424729515,1781094149000,-223.0,0.0001264,2]
[424729513,1781094149000,-225.0,0.0001264,2]
[424729520,1781094149000,-221.0,0.0001264,2]
[424729531,1781094149000,-229.0,0.0001264,2]
[424729525,1781094149000,-228.0,0.0001264,2]
[424729532,1781094149000,-226.0,0.00012641,2]
[424729550,1781094149000,-228.0,0.00012641,2]
[424729547,1781094149000,-225.0,0.00012641,2]
[424729548,1781094149000,-222.0,0.00012641,2]
[424729545,1781094149000,-225.0,0.00012641,2]
[424729546,1781094149000,-228.0,0.00012641,2]
[424729543,1781094149000,-228.0,0.00012641,2]
[424729544,1781094149000,-222.0,0.00012641,2]
[424729541,1781094149000,-221.0,0.00012641,2]
[424729540,1781094149000,-227.0,0.00012641,2]
[424729539,1781094149000,-223.0,0.00012641,2]
[424729549,1781094149000,-229.0,0.00012641,2]
[424729536,1781094149000,-227.0,0.00012641,2]
[424729538,1781094149000,-222.0,0.00012641,2]
[424729537,1781094149000,-227.0,0.00012641,2]
[424729535,1781094149000,-222.0,0.00012641,2]
[424729533,1781094149000,-221.0,0.00012641,2]
[424729542,1781094149000,-226.0,0.00012641,2]
[424729534,1781094149000,-224.0,0.00012641,2]
[424729551,1781094150000,-224.0,0.00012641,2]
[424729552,1781094150000,-228.0,0.00012641,2]
[424729554,1781094150000,-228.0,0.00012641,2]
[424729555,1781094150000,-49.99,0.00012641,2]
[424729553,1781094150000,-225.0,0.00012641,2]
[424729569,1781094285000,-222.0,0.0001264,2]
[424729570,1781094285000,-227.0,0.0001264,2]
[424729565,1781094285000,-3062.1599779,0.0001264,2]
[424729564,1781094285000,-150.0,0.00012639,2]
[424729567,1781094285000,-224.0,0.0001264,2]
[424729568,1781094285000,-227.0,0.0001264,2]
[424729566,1781094285000,-223.0,0.0001264,2]
[424729562,1781094285000,-223.0,0.00012639,2]
[424729560,1781094285000,-224.0,0.00012639,2]
[424729561,1781094285000,-227.0,0.00012639,2]
[424729572,1781094285000,-223.0,0.0001264,2]
[424729558,1781094285000,-225.0,0.00012639,2]
[424729559,1781094285000,-222.0,0.00012639,2]
[424729556,1781094285000,-225.0,0.00012639,2]
[424729557,1781094285000,-229.0,0.00012639,2]
[424729563,1781094285000,-300.0,0.00012639,2]
[424729571,1781094285000,-221.0,0.0001264,2]
[424729585,1781094285000,-224.0,0.0001264,2]
[424729573,1781094285000,-222.0,0.0001264,2]
[424729590,1781094285000,-89.8300221,0.00012641,2]
[424729589,1781094285000,-221.0,0.00012641,2]
[424729588,1781094285000,-222.0,0.00012641,2]
[424729587,1781094285000,-174.01,0.00012641,2]
[424729586,1781094285000,-228.0,0.0001264,2]
[424729583,1781094285000,-221.0,0.0001264,2]
[424729582,1781094285000,-229.0,0.0001264,2]
[424729584,1781094285000,-221.0,0.0001264,2]
[424729578,1781094285000,-222.0,0.0001264,2]
[424729579,1781094285000,-224.0,0.0001264,2]
[424729580,1781094285000,-223.0,0.0001264,2]
[424729577,1781094285000,-224.0,0.0001264,2]
[424729576,1781094285000,-222.0,0.0001264,2]
[424729575,1781094285000,-227.0,0.0001264,2]
[424729581,1781094285000,-229.0,0.0001264,2]
[424729574,1781094285000,-223.0,0.0001264,2]
[424729591,1781094312000,200.0,0.0003,120]
[424729592,1781094490000,2750155.61482964,0.00030137,120]
[424729593,1781094536000,-166.66,0.00011848,2]
[424729595,1781094536000,-841.5,0.00012145,2]
[424729594,1781094536000,-166.66,0.00012098,2]
[424729596,1781094536000,-522.48993253,0.00012295,2]
[424729606,1781094632000,-385.37598275,0.00012295,2]
[424729622,1781094633000,-223.0,0.00012639,2]
[424729623,1781094633000,-229.0,0.00012639,2]
[424729619,1781094633000,-227.0,0.00012639,2]
[424729621,1781094633000,-226.0,0.00012639,2]
[424729615,1781094633000,-227.0,0.00012639,2]
[424729620,1781094633000,-224.0,0.00012639,2]
[424729614,1781094633000,-229.0,0.00012639,2]
[424729612,1781094633000,-166.66,0.00012597,2]
[424729607,1781094633000,-0.74222156,0.00012295,2]
[424729613,1781094633000,-150.0,0.00012638,2]
[424729609,1781094633000,-186.58,0.00012329,2]
[424729610,1781094633000,-166.66,0.00012347,2]
[424729611,1781094633000,-841.5,0.00012448,2]
[424729608,1781094633000,-693.52186316,0.00012295,2]
[424729624,1781094633000,-224.0,0.00012639,2]
[424729617,1781094633000,-225.0,0.00012639,2]
[424729625,1781094633000,-227.0,0.00012639,2]
[424729631,1781094633000,-225.0,0.00012639,2]
[424729618,1781094633000,-225.0,0.00012639,2]
[424729616,1781094633000,-221.0,0.00012639,2]
[424729641,1781094633000,-227.0,0.00012639,2]
[424729630,1781094633000,-227.0,0.00012639,2]
[424729628,1781094633000,-223.0,0.00012639,2]
[424729638,1781094633000,-228.0,0.00012639,2]
[424729633,1781094633000,-221.0,0.00012639,2]
[424729639,1781094633000,-221.0,0.00012639,2]
[424729629,1781094633000,-228.0,0.00012639,2]
[424729635,1781094633000,-223.0,0.00012639,2]
[424729634,1781094633000,-221.0,0.00012639,2]
[424729636,1781094633000,-224.0,0.00012639,2]
[424729640,1781094633000,-229.0,0.00012639,2]
[424729632,1781094633000,-226.0,0.00012639,2]
[424729642,1781094633000,-226.0,0.00012639,2]
[424729626,1781094633000,-222.0,0.00012639,2]
[424729627,1781094633000,-229.0,0.00012639,2]
[424729637,1781094633000,-226.0,0.00012639,2]
[424729645,1781094634000,-250.0,0.00012639,2]
[424729651,1781094634000,-459.37502257,0.0001264,2]
[424729643,1781094634000,-228.0,0.00012639,2]
[424729647,1781094634000,-2955.31964674,0.0001264,2]
[424729646,1781094634000,-2000.0,0.00012639,2]
[424729650,1781094634000,-344.69894631,0.0001264,2]
[424729644,1781094634000,-222.0,0.00012639,2]
[424729648,1781094634000,-3858.75604452,0.0001264,2]
[424729649,1781094634000,-1020.54048194,0.0001264,2]
[424729664,1781094638000,-221.0,0.00012641,2]
[424729667,1781094638000,-229.0,0.00012641,2]
[424729660,1781094638000,-1130906.4534878,0.0001264,2]
[424729668,1781094638000,-224.0,0.00012641,2]
[424729659,1781094638000,-3783.32013652,0.0001264,2]
[424729662,1781094638000,-226.0,0.00012641,2]
[424729666,1781094638000,-226.0,0.00012641,2]
[424729663,1781094638000,-139.1699779,0.00012641,2]
[424729658,1781094638000,-4416.54515573,0.00012541,2]
[424729665,1781094638000,-222.0,0.00012641,2]
[424729670,1781094638000,-223.0,0.00012641,2]
[424729669,1781094638000,-227.0,0.00012641,2]
[424729672,1781094638000,-225.0,0.00012641,2]
[424729671,1781094638000,-221.0,0.00012641,2]
[424729673,1781094638000,-222.0,0.00012641,2]
[424729661,1781094638000,-222.0,0.00012641,2]
[424729698,1781094639000,-159.95573912,0.00012893,7]
[424729690,1781094639000,-229.0,0.00012709,2]
[424729704,1781094639000,-841.5,0.00013055,2]
[424729702,1781094639000,-381.76974956,0.00013009,2]
[424729700,1781094639000,-500.0,0.00012915,2]
[424729706,1781094639000,-166.66,0.00013096,2]
[424729708,1781094639000,-541.3104,0.00013188,2]
[424729712,1781094639000,-381.76974956,0.00013285,2]
[424729714,1781094639000,-2236.76304633,0.00013346,2]
[424729716,1781094639000,-381.76974956,0.00013348,2]
[424729696,1781094639000,-166.66,0.00012846,2]
[424729718,1781094639000,-841.5,0.00013359,2]
[424729724,1781094639000,-1500000.0,0.00013445,2]
[424729722,1781094639000,-1687.24630316,0.00013435,2]
[424729720,1781094639000,-381.76974956,0.000134,2]
[424729739,1781094639000,-1086.55396882,0.00013478,2]
[424729710,1781094639000,-381.76974956,0.00013204,2]
[424729694,1781094639000,-841.5,0.00012752,2]
[424729683,1781094639000,-221.0,0.00012643,2]
[424729691,1781094639000,-223.0,0.00012709,2]
[424729733,1781094639000,-381.76974956,0.00013446,2]
[424729678,1781094639000,-500.0,0.00012641,2]
[424729674,1781094639000,-223.0,0.00012641,2]
[424729675,1781094639000,-229.0,0.00012641,2]
[424729676,1781094639000,-226.0,0.00012641,2]
[424729677,1781094639000,-222.0,0.00012641,2]
[424729679,1781094639000,-229.0,0.00012641,2]
[424729692,1781094639000,-222.0,0.00012709,2]
[424729681,1781094639000,-225.0,0.00012641,2]
[424729685,1781094639000,-221.0,0.00012644,2]
[424729684,1781094639000,-221.0,0.00012643,2]
[424729686,1781094639000,-224.0,0.00012644,2]
[424729688,1781094639000,-284.95203121,0.00012693,2]
[424729680,1781094639000,-223.0,0.00012641,2]
[424729687,1781094639000,-4195.72,0.00012652,2]
[424729689,1781094639000,-215.92376884,0.00012696,2]
[424729682,1781094639000,-228.0,0.00012641,2]
[424729729,1781094639000,-2500.0,0.00013446,2]
[424729754,1781094639000,-500.0,0.00013545,2]
[424729737,1781094639000,-1000.0,0.00013477,2]
[424729771,1781094639000,-223.72186933,0.00013545,2]
[424729779,1781094639000,-500.0,0.00013545,2]
[424729770,1781094639000,-500.0,0.00013545,2]
[424729797,1781094639000,-500.0,0.00013545,2]
[424729785,1781094639000,-500.0,0.00013545,2]
[424729796,1781094639000,-500.0,0.00013545,2]
[424729775,1781094639000,-361.21032862,0.00013545,2]
[424729783,1781094639000,-500.0,0.00013545,2]
[424729798,1781094639000,-500.0,0.00013545,2]
[424729781,1781094639000,-500.0,0.00013545,2]
[424729787,1781094639000,-500.0,0.00013545,2]
[424729732,1781094639000,-278.7252,0.00013446,2]
[424729792,1781094639000,-500.0,0.00013545,2]
[424729800,1781094639000,-500.0,0.00013545,2]
[424729790,1781094639000,-500.0,0.00013545,2]
[424729802,1781094639000,-500.0,0.00013545,2]
[424729801,1781094639000,-500.0,0.00013545,2]
[424729799,1781094639000,-500.0,0.00013545,2]
[424729777,1781094639000,-500.0,0.00013545,2]
[424729795,1781094639000,-500.0,0.00013545,2]
[424729766,1781094639000,-500.0,0.00013545,2]
[424729794,1781094639000,-500.0,0.00013545,2]
[424729734,1781094639000,-2673.99493668,0.00013448,2]
[424729727,1781094639000,-5998.4199,0.00013446,2]
[424729741,1781094639000,-34378.71162418,0.00013478,2]
[424729742,1781094639000,-381.76974956,0.00013488,2]
[424729752,1781094639000,-500.0,0.00013545,2]
[424729756,1781094639000,-500.0,0.00013545,2]
[424729744,1781094639000,-381.76974956,0.00013526,2]
[424729731,1781094639000,-4950.0476,0.00013446,2]
[424729748,1781094639000,-500.0,0.00013545,2]
[424729750,1781094639000,-500.0,0.00013545,2]
[424729760,1781094639000,-500.28994077,0.00013545,2]
[424729758,1781094639000,-256.43682364,0.00013545,2]
[424729768,1781094639000,-432.74575224,0.00013545,2]
[424729764,1781094639000,-617.31569884,0.00013545,2]
[424729746,1781094639000,-151.0,0.00013543,2]
[424729762,1781094639000,-481.79458278,0.00013545,2]
[424729818,1781094640000,-500.0,0.00013545,2]
[424729822,1781094640000,-500.0,0.00013545,2]
[424729821,1781094640000,-500.0,0.00013545,2]
[424729824,1781094640000,-500.0,0.00013545,2]
[424729825,1781094640000,-500.0,0.00013545,2]
[424729827,1781094640000,-199.44997292,0.00013545,3]
[424729826,1781094640000,-500.0,0.00013545,2]
[424729828,1781094640000,-1300.24321183,0.00013545,3]
[424729830,1781094640000,-2233.391,0.00013545,2]
[424729817,1781094640000,-500.0,0.00013545,2]
[424729829,1781094640000,-184.288,0.00013545,2]
[424729823,1781094640000,-500.0,0.00013545,2]
[424729819,1781094640000,-500.0,0.00013545,2]
[424729808,1781094640000,-500.0,0.00013545,2]
[424729816,1781094640000,-500.0,0.00013545,2]
[424729815,1781094640000,-564.24579566,0.00013545,2]
[424729814,1781094640000,-500.0,0.00013545,2]
[424729813,1781094640000,-500.0,0.00013545,2]
[424729811,1781094640000,-500.0,0.00013545,2]
[424729810,1781094640000,-500.0,0.00013545,2]
[424729809,1781094640000,-500.0,0.00013545,2]
[424729806,1781094640000,-500.0,0.00013545,2]
[424729807,1781094640000,-500.0,0.00013545,2]
[424729805,1781094640000,-539.90807917,0.00013545,2]
[424729804,1781094640000,-500.0,0.00013545,2]
[424729831,1781094640000,-381.76974956,0.00013562,2]
[424729820,1781094640000,-500.0,0.00013545,2]
[424729832,1781094640000,-381.76974956,0.00013596,2]
[424729803,1781094640000,-500.0,0.00013545,2]
[424729835,1781094640000,-381.76974956,0.00013658,2]
[424729834,1781094640000,-239.93360872,0.00013651,7]
[424729861,1781094640000,-640.46,0.00013698,2]
[424729862,1781094640000,-640.46,0.00013698,2]
[424729860,1781094640000,-500.0,0.00013698,2]
[424729853,1781094640000,-500.0,0.00013698,2]
[424729855,1781094640000,-500.0,0.00013698,2]
[424729857,1781094640000,-500.0,0.00013698,2]
[424729854,1781094640000,-500.0,0.00013698,2]
[424729852,1781094640000,-500.0,0.00013698,2]
[424729859,1781094640000,-500.0,0.00013698,2]
[424729858,1781094640000,-500.0,0.00013698,2]
[424729849,1781094640000,-500.0,0.00013698,2]
[424729848,1781094640000,-500.0,0.00013698,2]
[424729851,1781094640000,-500.0,0.00013698,2]
[424729856,1781094640000,-500.0,0.00013698,2]
[424729847,1781094640000,-500.0,0.00013698,2]
[424729850,1781094640000,-500.0,0.00013698,2]
[424729837,1781094640000,-500.0,0.00013698,2]
[424729836,1781094640000,-381.76974956,0.00013686,2]
[424729838,1781094640000,-500.0,0.00013698,2]
[424729833,1781094640000,-381.76974956,0.00013627,2]
[424729839,1781094640000,-500.0,0.00013698,2]
[424729840,1781094640000,-500.0,0.00013698,2]
[424729842,1781094640000,-500.0,0.00013698,2]
[424729846,1781094640000,-500.0,0.00013698,2]
[424729845,1781094640000,-500.0,0.00013698,2]
[424729843,1781094640000,-500.0,0.00013698,2]
[424729844,1781094640000,-500.0,0.00013698,2]
[424729841,1781094640000,-500.0,0.00013698,2]
[424729882,1781094641000,-500.0,0.00013698,2]
[424729888,1781094641000,-500.0,0.00013698,2]
[424729886,1781094641000,-500.0,0.00013698,2]
[424729884,1781094641000,-500.0,0.00013698,2]
[424729883,1781094641000,-500.0,0.00013698,2]
[424729887,1781094641000,-500.0,0.00013698,2]
[424729896,1781094641000,-316.16211611,0.00013698,2]
[424729890,1781094641000,-500.0,0.00013698,2]
[424729892,1781094641000,-500.0,0.00013698,2]
[424729894,1781094641000,-500.0,0.00013698,2]
[424729893,1781094641000,-500.0,0.00013698,2]
[424729891,1781094641000,-500.0,0.00013698,2]
[424729885,1781094641000,-500.0,0.00013698,2]
[424729889,1781094641000,-500.0,0.00013698,2]
[424729881,1781094641000,-426.605,0.00013698,2]
[424729869,1781094641000,-500.0,0.00013698,2]
[424729877,1781094641000,-500.0,0.00013698,2]
[424729863,1781094641000,-640.46,0.00013698,2]
[424729895,1781094641000,-500.0,0.00013698,2]
[424729864,1781094641000,-640.46,0.00013698,2]
[424729866,1781094641000,-640.46,0.00013698,2]
[424729868,1781094641000,-640.46,0.00013698,2]
[424729870,1781094641000,-500.0,0.00013698,2]
[424729879,1781094641000,-567.85831353,0.00013698,2]
[424729871,1781094641000,-500.0,0.00013698,2]
[424729874,1781094641000,-500.0,0.00013698,2]
[424729873,1781094641000,-500.0,0.00013698,2]
[424729875,1781094641000,-500.0,0.00013698,2]
[424729876,1781094641000,-500.0,0.00013698,2]
[424729878,1781094641000,-500.0,0.00013698,2]
[424729880,1781094641000,-500.0,0.00013698,2]
[424729872,1781094641000,-500.0,0.00013698,2]
[424729897,1781094641000,-500.0,0.00013698,2]
[424729898,1781094641000,-500.0,0.00013698,2]
[424729931,1781094641000,-500.0,0.00013699,2]
[424729923,1781094641000,-500.0,0.00013699,2]
[424729922,1781094641000,-500.0,0.00013699,2]
[424729919,1781094641000,-500.0,0.00013699,2]
[424729924,1781094641000,-602.6137121,0.00013699,2]
[424729918,1781094641000,-500.0,0.00013699,2]
[424729920,1781094641000,-500.0,0.00013699,2]
[424729917,1781094641000,-500.0,0.00013699,2]
[424729926,1781094641000,-500.0,0.00013699,2]
[424729927,1781094641000,-500.0,0.00013699,2]
[424729928,1781094641000,-500.0,0.00013699,2]
[424729929,1781094641000,-500.0,0.00013699,2]
[424729930,1781094641000,-500.0,0.00013699,2]
[424729899,1781094641000,-500.0,0.00013698,2]
[424729932,1781094641000,-500.0,0.00013699,2]
[424729925,1781094641000,-500.0,0.00013699,2]
[424729915,1781094641000,-2500.0,0.00013699,2]
[424729921,1781094641000,-500.0,0.00013699,2]
[424729912,1781094641000,-695.44,0.00013698,2]
[424729916,1781094641000,-22258.35,0.00013699,2]
[424729902,1781094641000,-500.0,0.00013698,2]
[424729901,1781094641000,-500.0,0.00013698,2]
[424729900,1781094641000,-500.0,0.00013698,2]
[424729903,1781094641000,-500.0,0.00013698,2]
[424729907,1781094641000,-407.97689245,0.00013698,2]
[424729906,1781094641000,-500.0,0.00013698,2]
[424729905,1781094641000,-500.0,0.00013698,2]
[424729909,1781094641000,-695.44,0.00013698,2]
[424729910,1781094641000,-695.44,0.00013698,2]
[424729914,1781094641000,-657.58,0.00013699,2]
[424729913,1781094641000,-695.44,0.00013698,2]
[424729911,1781094641000,-695.44,0.00013698,2]
[424729908,1781094641000,-695.44,0.00013698,2]
[424729904,1781094641000,-500.0,0.00013698,2]
[424729951,1781094642000,-500.0,0.00013746,2]
[424729956,1781094642000,-381.76974956,0.00013839,2]
[424729953,1781094642000,-381.76974956,0.00013791,2]
[424729954,1781094642000,-34378.71162417,0.00013814,2]
[424729950,1781094642000,-381.76974956,0.00013741,2]
[424729952,1781094642000,-381.76974956,0.00013766,2]
[424729962,1781094642000,-300.0,0.00013903,2]
[424729955,1781094642000,-381.76974956,0.00013815,2]
[424729959,1781094642000,-300.0,0.00013903,2]
[424729958,1781094642000,-381.76974956,0.00013884,2]
[424729960,1781094642000,-300.0,0.00013903,2]
[424729961,1781094642000,-300.0,0.00013903,2]
[424729949,1781094642000,-255.0,0.00013737,2]
[424729957,1781094642000,-381.76974956,0.00013861,2]
[424729948,1781094642000,-381.76974956,0.00013714,2]
[424729964,1781094642000,-2500.0,0.00013903,2]
[424729946,1781094642000,-500.0,0.00013699,2]
[424729944,1781094642000,-500.0,0.00013699,2]
[424729945,1781094642000,-500.0,0.00013699,2]
[424729940,1781094642000,-500.0,0.00013699,2]
[424729942,1781094642000,-500.0,0.00013699,2]
[424729943,1781094642000,-500.0,0.00013699,2]
[424729941,1781094642000,-500.0,0.00013699,2]
[424729938,1781094642000,-500.0,0.00013699,2]
[424729939,1781094642000,-500.0,0.00013699,2]
[424729935,1781094642000,-500.0,0.00013699,2]
[424729934,1781094642000,-500.0,0.00013699,2]
[424729937,1781094642000,-500.0,0.00013699,2]
[424729936,1781094642000,-500.0,0.00013699,2]
[424729933,1781094642000,-500.0,0.00013699,2]
[424729947,1781094642000,-1112.5471825,0.00013699,2]
[424729963,1781094642000,-300.0,0.00013903,2]
[424729990,1781094642000,-381.76974956,0.00014182,2]
[424729965,1781094642000,-2500.0,0.00013903,2]
[424729967,1781094642000,-2500.0,0.00013903,2]
[424729997,1781094642000,-381.76974956,0.00014246,2]
[424729996,1781094642000,-381.76974956,0.0001423,2]
[424729995,1781094642000,-381.76974956,0.00014215,2]
[424729993,1781094642000,-500.0,0.00014209,2]
[424729991,1781094642000,-234.532469,0.00014196,2]
[424729992,1781094642000,-381.76974956,0.00014199,2]
[424729988,1781094642000,-34378.71162417,0.0001415,2]
[424729987,1781094642000,-381.76974956,0.00014149,2]
[424729989,1781094642000,-381.76974956,0.00014166,2]
[424729985,1781094642000,-381.76974956,0.00014115,2]
[424729986,1781094642000,-381.76974956,0.00014133,2]
[424729983,1781094642000,-381.76974956,0.0001408,2]
[424729981,1781094642000,-381.76974956,0.00014044,2]
[424729980,1781094642000,-381.76974956,0.00014025,2]
[424729994,1781094642000,-2000.0,0.00014209,2]
[424729982,1781094642000,-381.76974956,0.00014062,2]
[424729969,1781094642000,-600.0,0.00013903,2]
[424729984,1781094642000,-381.76974956,0.00014098,2]
[424729966,1781094642000,-2500.0,0.00013903,2]
[424729968,1781094642000,-2500.0,0.00013903,2]
[424729971,1781094642000,-600.0,0.00013903,2]
[424729973,1781094642000,-381.76974956,0.00013926,2]
[424729970,1781094642000,-600.0,0.00013903,2]
[424729974,1781094642000,-381.76974956,0.00013947,2]
[424729975,1781094642000,-381.76974956,0.00013967,2]
[424729976,1781094642000,-381.76974956,0.00013987,2]
[424729978,1781094642000,-381.76974956,0.00014006,2]
[424729977,1781094642000,-26563.13130266,0.0001399,2]
[424729979,1781094642000,-596.56,0.00014023,2]
[424729972,1781094642000,-381.76974956,0.00013905,2]
[424730021,1781094643000,-433.0,0.00014938,2]
[424730027,1781094643000,-151.0,0.00014997,2]
[424730034,1781094643000,-500.0,0.00014999,2]
[424730033,1781094643000,-151.0,0.00014997,2]
[424730024,1781094643000,-1687.24630316,0.00014989,2]
[424730037,1781094643000,-500.0,0.00014999,2]
[424730031,1781094643000,-151.0,0.00014997,2]
[424730029,1781094643000,-151.0,0.00014997,2]
[424730041,1781094643000,-417.45761275,0.00014999,2]
[424730047,1781094643000,-500.0,0.00014999,2]
[424730045,1781094643000,-500.0,0.00014999,2]
[424730050,1781094643000,-500.0,0.00014999,2]
[424730052,1781094643000,-500.0,0.00014999,2]
[424730054,1781094643000,-500.0,0.00014999,2]
[424730043,1781094643000,-1300.24321183,0.00014999,5]
[424730058,1781094643000,-500.0,0.00014999,2]
[424730056,1781094643000,-500.0,0.00014999,2]
[424730062,1781094643000,-500.0,0.00014999,2]
[424730018,1781094643000,-2000.0,0.000149,2]
[424730039,1781094643000,-500.0,0.00014999,2]
[424730017,1781094643000,-234545.16555343,0.0001485,2]
[424730003,1781094643000,-381.76974956,0.00014336,2]
[424730019,1781094643000,-10000.0,0.000149,2]
[424730060,1781094643000,-500.0,0.00014999,2]
[424729999,1781094643000,-381.76974956,0.00014277,2]
[424729998,1781094643000,-381.76974956,0.00014261,2]
[424730001,1781094643000,-381.76974956,0.00014306,2]
[424730004,1781094643000,-381.76974956,0.0001435,2]
[424730000,1781094643000,-381.76974956,0.00014292,2]
[424730002,1781094643000,-381.76974956,0.00014321,2]
[424730006,1781094643000,-381.76974956,0.00014378,2]
[424730005,1781094643000,-381.76974956,0.00014364,2]
[424730009,1781094643000,-628.7,0.00014542,2]
[424730008,1781094643000,-695.44,0.00014541,2]
[424730007,1781094643000,-34378.71162417,0.00014485,2]
[424730011,1781094643000,-5526.650951,0.00014568,2]
[424730012,1781094643000,-500.0,0.00014767,2]
[424730013,1781094643000,-3318.0430966,0.00014796,2]
[424730010,1781094643000,-200.0,0.00014542,2]
[424730014,1781094643000,-877.3240747,0.00014796,2]
[424730015,1781094643000,-34378.71162417,0.00014821,2]
[424730016,1781094643000,-695.44,0.00014849,2]
[424730020,1781094643000,-2236.76304633,0.00014923,2]
[424730064,1781094643000,-500.0,0.00014999,2]
[424730120,1781094643000,-500.0,0.00014999,2]
[424730066,1781094643000,-500.0,0.00014999,2]
[424730107,1781094643000,-640.46,0.00014999,2]
[424730109,1781094643000,-640.46,0.00014999,2]
[424730110,1781094643000,-640.46,0.00014999,2]
[424730111,1781094643000,-232.91439081,0.00014999,2]
[424730114,1781094643000,-500.0,0.00014999,2]
[424730113,1781094643000,-500.0,0.00014999,2]
[424730112,1781094643000,-500.0,0.00014999,2]
[424730115,1781094643000,-500.0,0.00014999,2]
[424730118,1781094643000,-179.980176,0.00014999,2]
[424730116,1781094643000,-500.0,0.00014999,2]
[424730117,1781094643000,-500.0,0.00014999,2]
[424730119,1781094643000,-500.0,0.00014999,2]
[424730123,1781094643000,-265.64691876,0.00014999,2]
[424730122,1781094643000,-500.0,0.00014999,2]
[424730127,1781094643000,-500.0,0.00014999,2]
[424730121,1781094643000,-500.0,0.00014999,2]
[424730126,1781094643000,-500.0,0.00014999,2]
[424730125,1781094643000,-500.0,0.00014999,2]
[424730068,1781094643000,-500.0,0.00014999,2]
[424730102,1781094643000,-182.4905201,0.00014999,2]